[Event "*** SCC Grand Prix: Titled Tuesday Blitz"]
[Site "Chess.com"]
[Date "2020.06.23"]
[Round "9"]
[White "Sashadav97"]
[Black "ZverevLev"]
[Result "1-0"]
[WhiteElo "2602"]
[BlackElo "2369"]
[TimeControl "180+1"]
[EndTime "11:45:54 PDT"]
[Termination "Sashadav97 won by resignation"]

1. d4 {[%clk 0:03:00.9]} 1... Nf6 {[%clk 0:02:59]} 2. c4 {[%clk 0:03:00.1]} 2...
e6 {[%clk 0:02:57.8]} 3. Nc3 {[%clk 0:02:59.5]} 3... Bb4 {[%clk 0:02:56.7]} 4.
e3 {[%clk 0:02:58.7]} 4... d5 {[%clk 0:02:55.7]} 5. a3 {[%clk 0:02:55.3]} 5...
Bxc3+ {[%clk 0:02:54.6]} 6. bxc3 {[%clk 0:02:56.2]} 6... c5 {[%clk 0:02:53.2]}
7. cxd5 {[%clk 0:02:56.3]} 7... exd5 {[%clk 0:02:52.2]} 8. Bd3 {[%clk
0:02:56.5]} 8... O-O {[%clk 0:02:51.3]} 9. Ne2 {[%clk 0:02:56.7]} 9... Nc6
{[%clk 0:02:51.1]} 10. O-O {[%clk 0:02:55.9]} 10... Re8 {[%clk 0:02:47]} 11. f3
{[%clk 0:02:53.9]} 11... b6 {[%clk 0:02:39.6]} 12. Ng3 {[%clk 0:02:47.5]} 12...
Ne7 {[%clk 0:02:32.9]} 13. Ra2 {[%clk 0:02:46.8]} 13... Bb7 {[%clk 0:02:31.1]}
14. Re2 {[%clk 0:02:21]} 14... Ng6 {[%clk 0:02:24.8]} 15. Bb2 {[%clk 0:02:21.1]}
15... Rc8 {[%clk 0:02:22.4]} 16. Ree1 {[%clk 0:02:21]} 16... Rc7 {[%clk
0:02:08.8]} 17. e4 {[%clk 0:02:19.4]} 17... dxe4 {[%clk 0:01:54.2]} 18. fxe4
{[%clk 0:02:20.3]} 18... c4 {[%clk 0:01:36.5]} 19. Bc2 {[%clk 0:02:16.6]} 19...
b5 {[%clk 0:01:35.3]} 20. Bc1 {[%clk 0:02:15.3]} 20... Rd7 {[%clk 0:01:33.7]}
21. Bg5 {[%clk 0:02:14]} 21... Re6 {[%clk 0:01:25.5]} 22. Nh5 {[%clk 0:01:45.9]}
22... Ne5 {[%clk 0:01:16.4]} 23. Bxf6 {[%clk 0:01:39.8]} 23... gxf6 {[%clk
0:01:15.3]} 24. Qd2 {[%clk 0:01:34.4]} 24... Nd3 {[%clk 0:00:40.8]} 25. Bxd3
{[%clk 0:01:31.3]} 25... cxd3 {[%clk 0:00:40]} 26. Qh6 {[%clk 0:01:30.7]} 26...
Qf8 {[%clk 0:00:39.2]} 27. Nxf6+ {[%clk 0:01:30.9]} 27... Rxf6 {[%clk
0:00:39.2]} 28. Qxf6 {[%clk 0:01:31.4]} 28... Rd6 {[%clk 0:00:35.9]} 29. Qf4
{[%clk 0:01:30.4]} 29... Rg6 {[%clk 0:00:35.3]} 30. Rf3 {[%clk 0:01:23]} 30...
Qg7 {[%clk 0:00:29.1]} 31. g3 {[%clk 0:01:18.4]} 31... d2 {[%clk 0:00:20]} 32.
Qxd2 {[%clk 0:01:18.1]} 32... h5 {[%clk 0:00:19.6]} 33. d5 {[%clk 0:01:05.4]}
33... h4 {[%clk 0:00:18.5]} 34. Qf2 {[%clk 0:01:04.4]} 34... Bc8 {[%clk
0:00:14.6]} 35. Ree3 {[%clk 0:00:56]} 35... Bg4 {[%clk 0:00:13.2]} 36. Rf4
{[%clk 0:00:56.2]} 36... Ra6 {[%clk 0:00:04.6]} 37. gxh4 {[%clk 0:00:44.3]}
37... Rxa3 {[%clk 0:00:04.3]} 38. Rg3 {[%clk 0:00:44.3]} 38... Ra1+ {[%clk
0:00:02.7]} 39. Kg2 {[%clk 0:00:44.5]} 39... f5 {[%clk 0:00:03.1]} 40. exf5
{[%clk 0:00:41.5]} 40... Qf7 {[%clk 0:00:02.8]} 41. Rfxg4+ {[%clk 0:00:40.6]}
41... Kh7 {[%clk 0:00:01.3]} 42. Rg7+ {[%clk 0:00:40.3]} 1-0

[Event "*** SCC Grand Prix: Titled Tuesday Blitz"]
[Site "Chess.com"]
[Date "2020.06.23"]
[Round "9"]
[White "hansen"]
[Black "ChessQueen"]
[Result "1/2-1/2"]
[WhiteElo "2968"]
[BlackElo "2715"]
[TimeControl "180+1"]
[EndTime "11:45:57 PDT"]
[Termination "Game drawn by repetition"]

1. e4 {[%clk 0:02:59.6]} 1... c6 {[%clk 0:02:59.7]} 2. Nc3 {[%clk 0:02:59.2]}
2... d5 {[%clk 0:02:59.7]} 3. Nf3 {[%clk 0:03:00.1]} 3... dxe4 {[%clk
0:02:59.7]} 4. Nxe4 {[%clk 0:03:01]} 4... Nf6 {[%clk 0:03:00.1]} 5. d3 {[%clk
0:02:59.8]} 5... Nxe4 {[%clk 0:02:57.4]} 6. dxe4 {[%clk 0:03:00.7]} 6... Qxd1+
{[%clk 0:02:56.8]} 7. Kxd1 {[%clk 0:03:01.1]} 7... g6 {[%clk 0:02:51.7]} 8. c3
{[%clk 0:03:00.2]} 8... Bg7 {[%clk 0:02:51.4]} 9. Kc2 {[%clk 0:02:59.9]} 9...
Nd7 {[%clk 0:02:46.4]} 10. Nd2 {[%clk 0:02:52.1]} 10... Ne5 {[%clk 0:02:40]} 11.
f3 {[%clk 0:02:51.3]} 11... b6 {[%clk 0:02:35.4]} 12. a4 {[%clk 0:02:50.9]}
12... Bb7 {[%clk 0:02:22.9]} 13. a5 {[%clk 0:02:48.6]} 13... O-O-O {[%clk
0:02:22.7]} 14. axb6 {[%clk 0:02:33.4]} 14... axb6 {[%clk 0:02:22.6]} 15. Nc4
{[%clk 0:02:34.1]} 15... Nxc4 {[%clk 0:02:07.4]} 16. Bxc4 {[%clk 0:02:32.9]}
16... Rhf8 {[%clk 0:02:04.3]} 17. Bg5 {[%clk 0:02:19.2]} 17... Rd7 {[%clk
0:01:39.6]} 18. h4 {[%clk 0:01:47.4]} 18... h5 {[%clk 0:01:28.6]} 19. b4 {[%clk
0:01:32.6]} 19... e6 {[%clk 0:01:22.8]} 20. Rhd1 {[%clk 0:01:22.2]} 20... Rxd1
{[%clk 0:01:15.3]} 21. Rxd1 {[%clk 0:01:21.9]} 21... Be5 {[%clk 0:01:15.3]} 22.
b5 {[%clk 0:00:48.8]} 22... Kc7 {[%clk 0:01:04.7]} 23. Kb3 {[%clk 0:00:48.3]}
23... Bd6 {[%clk 0:01:00.9]} 24. Be3 {[%clk 0:00:37.1]} 24... Rd8 {[%clk
0:00:47]} 25. Bg5 {[%clk 0:00:20.9]} 25... Ra8 {[%clk 0:00:44.3]} 26. Be3 {[%clk
0:00:12.3]} 26... Be5 {[%clk 0:00:35.1]} 27. Be2 {[%clk 0:00:06.8]} 27... cxb5
{[%clk 0:00:28.5]} 28. Bxb5 {[%clk 0:00:06.8]} 28... Bc6 {[%clk 0:00:29.2]} 29.
c4 {[%clk 0:00:05.9]} 29... Bg3 {[%clk 0:00:24]} 30. Bg5 {[%clk 0:00:04]} 30...
Bd6 {[%clk 0:00:22.8]} 31. Bc1 {[%clk 0:00:02.9]} 31... Bxb5 {[%clk 0:00:20.1]}
32. cxb5 {[%clk 0:00:03.3]} 32... Ra5 {[%clk 0:00:20.8]} 33. Kc4 {[%clk
0:00:03.5]} 33... Ra4+ {[%clk 0:00:21.2]} 34. Kc3 {[%clk 0:00:03.4]} 34... Ra5
{[%clk 0:00:19.6]} 35. Kc4 {[%clk 0:00:03.4]} 35... Ra4+ {[%clk 0:00:20]} 36.
Kc3 {[%clk 0:00:03.8]} 36... Ra5 {[%clk 0:00:13.9]} 37. Kc4 {[%clk 0:00:04.1]}
1/2-1/2

[Event "*** SCC Grand Prix: Titled Tuesday Blitz"]
[Site "Chess.com"]
[Date "2020.06.23"]
[Round "9"]
[White "Dmitry_Konenkin"]
[Black "Cubitas"]
[Result "0-1"]
[WhiteElo "2390"]
[BlackElo "2545"]
[TimeControl "180+1"]
[EndTime "11:46:01 PDT"]
[Termination "Cubitas won by checkmate"]

1. d4 {[%clk 0:03:00.9]} 1... d5 {[%clk 0:02:58.5]} 2. Bg5 {[%clk 0:03:01.3]}
2... h6 {[%clk 0:02:54.6]} 3. Bh4 {[%clk 0:03:01.3]} 3... Nf6 {[%clk 0:02:55.2]}
4. Bxf6 {[%clk 0:03:01]} 4... exf6 {[%clk 0:02:56.1]} 5. e3 {[%clk 0:03:01.3]}
5... c6 {[%clk 0:02:54]} 6. Bd3 {[%clk 0:02:59.9]} 6... Bd6 {[%clk 0:02:53.8]}
7. Nd2 {[%clk 0:03:00.4]} 7... f5 {[%clk 0:02:31.2]} 8. Qf3 {[%clk 0:03:00.4]}
8... g6 {[%clk 0:02:30.9]} 9. Ne2 {[%clk 0:03:00.7]} 9... Nd7 {[%clk 0:02:29.6]}
10. O-O-O {[%clk 0:03:00.8]} 10... Nf6 {[%clk 0:02:29.7]} 11. h3 {[%clk
0:03:01.1]} 11... a5 {[%clk 0:02:05.8]} 12. Rdg1 {[%clk 0:02:58.3]} 12... h5
{[%clk 0:01:58.3]} 13. Nf4 {[%clk 0:02:28.6]} 13... a4 {[%clk 0:01:55.8]} 14. c4
{[%clk 0:02:19.9]} 14... Qa5 {[%clk 0:01:35.8]} 15. g4 {[%clk 0:01:42.8]} 15...
fxg4 {[%clk 0:01:20]} 16. hxg4 {[%clk 0:01:43]} 16... Bxg4 {[%clk 0:01:03.9]}
17. Rxg4 {[%clk 0:01:42.7]} 17... Nxg4 {[%clk 0:01:04.4]} 18. Nxg6 {[%clk
0:01:43]} 18... fxg6 {[%clk 0:00:54.3]} 19. Bxg6+ {[%clk 0:01:43]} 19... Kd8
{[%clk 0:00:54.1]} 20. Bxh5 {[%clk 0:01:34.1]} 20... a3 {[%clk 0:00:48.1]} 21.
b4 {[%clk 0:00:32.9]} 21... Qxb4 {[%clk 0:00:44.8]} 22. Qxg4 {[%clk 0:00:27]}
22... Qc3+ {[%clk 0:00:36]} 23. Kd1 {[%clk 0:00:27]} 23... Qa1+ {[%clk
0:00:34.4]} 24. Ke2 {[%clk 0:00:23.8]} 24... Qxh1 {[%clk 0:00:34.9]} 25. Bg6
{[%clk 0:00:18.9]} 25... Qh4 {[%clk 0:00:27.2]} 26. Qe6 {[%clk 0:00:17]} 26...
Qe7 {[%clk 0:00:27]} 27. Qf5 {[%clk 0:00:13.6]} 27... Rf8 {[%clk 0:00:25.7]} 28.
Qh3 {[%clk 0:00:13.6]} 28... Bb4 {[%clk 0:00:22.8]} 29. Nf3 {[%clk 0:00:10.8]}
29... Qf6 {[%clk 0:00:10.6]} 30. Bh5 {[%clk 0:00:10.8]} 30... Qf5 {[%clk
0:00:09.6]} 31. Qg3 {[%clk 0:00:10.5]} 31... Qc2+ {[%clk 0:00:07.6]} 32. Kf1
{[%clk 0:00:10.7]} 32... Qf5 {[%clk 0:00:05]} 33. Ke2 {[%clk 0:00:10.6]} 33...
dxc4 {[%clk 0:00:04.7]} 34. Bg4 {[%clk 0:00:09.9]} 34... Qd3# {[%clk 0:00:04.7]}
0-1

[Event "*** SCC Grand Prix: Titled Tuesday Blitz"]
[Site "Chess.com"]
[Date "2020.06.23"]
[Round "9"]
[White "QuintilianoR"]
[Black "Gabrielian_Artur"]
[Result "1-0"]
[WhiteElo "2648"]
[BlackElo "2757"]
[TimeControl "180+1"]
[EndTime "11:46:07 PDT"]
[Termination "QuintilianoR won by resignation"]

1. d4 {[%clk 0:03:00.9]} 1... Nf6 {[%clk 0:02:59.6]} 2. Nf3 {[%clk 0:03:00.7]}
2... e6 {[%clk 0:02:58.4]} 3. c4 {[%clk 0:02:59.6]} 3... c5 {[%clk 0:02:58.3]}
4. d5 {[%clk 0:02:59.2]} 4... exd5 {[%clk 0:02:58.8]} 5. cxd5 {[%clk 0:02:59.4]}
5... d6 {[%clk 0:02:59.4]} 6. Nc3 {[%clk 0:02:59.6]} 6... g6 {[%clk 0:02:59.9]}
7. e4 {[%clk 0:02:59]} 7... Bg7 {[%clk 0:03:00]} 8. h3 {[%clk 0:02:57.7]} 8...
O-O {[%clk 0:03:00.1]} 9. Bd3 {[%clk 0:02:58]} 9... Nbd7 {[%clk 0:03:00.2]} 10.
O-O {[%clk 0:02:57.5]} 10... Re8 {[%clk 0:03:00.5]} 11. Bf4 {[%clk 0:02:55.3]}
11... c4 {[%clk 0:03:00.5]} 12. Bc2 {[%clk 0:02:50.2]} 12... Nc5 {[%clk
0:02:59.4]} 13. e5 {[%clk 0:02:39.3]} 13... dxe5 {[%clk 0:02:23.2]} 14. Bxe5
{[%clk 0:02:37.5]} 14... Qb6 {[%clk 0:01:28.4]} 15. Rb1 {[%clk 0:02:33.9]} 15...
Bd7 {[%clk 0:01:13.3]} 16. Qd4 {[%clk 0:02:21.6]} 16... Nd3 {[%clk 0:01:12.5]}
17. Qxb6 {[%clk 0:02:12.6]} 17... axb6 {[%clk 0:01:12.6]} 18. Bd4 {[%clk
0:02:06.7]} 18... b5 {[%clk 0:01:11.5]} 19. a3 {[%clk 0:02:05.5]} 19... b4
{[%clk 0:01:06.4]} 20. Bxd3 {[%clk 0:01:58.1]} 20... cxd3 {[%clk 0:01:06.2]} 21.
axb4 {[%clk 0:01:57.3]} 21... Bf5 {[%clk 0:01:04.7]} 22. Rbd1 {[%clk 0:01:55.7]}
22... Rad8 {[%clk 0:01:04]} 23. g4 {[%clk 0:01:50.3]} 23... Be4 {[%clk
0:00:52.5]} 24. Nxe4 {[%clk 0:01:46.5]} 24... Rxe4 {[%clk 0:00:49]} 25. Rxd3
{[%clk 0:01:37.2]} 25... Rxd5 {[%clk 0:00:48.9]} 26. Rfd1 {[%clk 0:01:36.9]}
26... h6 {[%clk 0:00:29.6]} 27. Bc3 {[%clk 0:01:33]} 27... Rxd3 {[%clk
0:00:25.5]} 28. Rxd3 {[%clk 0:01:33.9]} 28... Rc4 {[%clk 0:00:24.5]} 29. Rd8+
{[%clk 0:01:29.3]} 29... Kh7 {[%clk 0:00:24.5]} 30. Ne5 {[%clk 0:01:15.1]} 30...
Rc7 {[%clk 0:00:22.5]} 31. f3 {[%clk 0:01:08.8]} 31... Re7 {[%clk 0:00:20.7]}
32. Nc4 {[%clk 0:00:56.3]} 32... Nd7 {[%clk 0:00:12.9]} 33. Nd6 {[%clk
0:00:50.6]} 33... Bxc3 {[%clk 0:00:12.4]} 34. bxc3 {[%clk 0:00:50.1]} 34... Ne5
{[%clk 0:00:12.8]} 35. Kg2 {[%clk 0:00:47.5]} 35... Nd3 {[%clk 0:00:11.9]} 36.
Ne4 {[%clk 0:00:42.1]} 36... Nf4+ {[%clk 0:00:11.8]} 37. Kg3 {[%clk 0:00:41.7]}
37... g5 {[%clk 0:00:12.4]} 38. h4 {[%clk 0:00:37.1]} 38... Ne6 {[%clk
0:00:12.4]} 39. Rd5 {[%clk 0:00:31.7]} 39... gxh4+ {[%clk 0:00:11.3]} 40. Kxh4
{[%clk 0:00:31.3]} 40... Kg7 {[%clk 0:00:12]} 41. Kg3 {[%clk 0:00:30.5]} 41...
Rc7 {[%clk 0:00:11.3]} 42. Rd3 {[%clk 0:00:28.2]} 42... Rc4 {[%clk 0:00:10.8]}
43. Nd6 {[%clk 0:00:27.9]} 43... Rc7 {[%clk 0:00:10.5]} 44. Ne8+ {[%clk
0:00:27.2]} 1-0

[Event "*** SCC Grand Prix: Titled Tuesday Blitz"]
[Site "Chess.com"]
[Date "2020.06.23"]
[Round "9"]
[White "MateSchmate"]
[Black "Khvicha_Supatashvili"]
[Result "0-1"]
[WhiteElo "2480"]
[BlackElo "2655"]
[TimeControl "180+1"]
[EndTime "11:46:07 PDT"]
[Termination "Khvicha_Supatashvili won by resignation"]

1. e4 {[%clk 0:03:00.9]} 1... c5 {[%clk 0:02:59.7]} 2. Nf3 {[%clk 0:02:59.2]}
2... Nc6 {[%clk 0:02:59.6]} 3. d4 {[%clk 0:02:59.2]} 3... cxd4 {[%clk 0:02:59]}
4. Nxd4 {[%clk 0:03:00.1]} 4... Nf6 {[%clk 0:02:58.9]} 5. Nc3 {[%clk 0:02:58.7]}
5... d6 {[%clk 0:02:59.1]} 6. Bg5 {[%clk 0:02:57.9]} 6... e6 {[%clk 0:02:58.9]}
7. Be2 {[%clk 0:02:53.6]} 7... Be7 {[%clk 0:02:57.9]} 8. O-O {[%clk 0:02:43.3]}
8... O-O {[%clk 0:02:57.8]} 9. Be3 {[%clk 0:02:38.4]} 9... a6 {[%clk 0:02:56.1]}
10. a4 {[%clk 0:02:36.4]} 10... Bd7 {[%clk 0:02:48.9]} 11. f4 {[%clk 0:02:33.2]}
11... Qc7 {[%clk 0:02:46.9]} 12. Qe1 {[%clk 0:02:28.3]} 12... Nxd4 {[%clk
0:02:45.3]} 13. Bxd4 {[%clk 0:02:27]} 13... e5 {[%clk 0:02:45.6]} 14. Be3 {[%clk
0:02:23.2]} 14... exf4 {[%clk 0:02:44.2]} 15. Rxf4 {[%clk 0:02:20.3]} 15... Be6
{[%clk 0:02:43.6]} 16. Rd1 {[%clk 0:02:15.4]} 16... Nd7 {[%clk 0:02:41.1]} 17.
Qd2 {[%clk 0:02:07.5]} 17... Ne5 {[%clk 0:02:38.9]} 18. Nd5 {[%clk 0:02:04.3]}
18... Bxd5 {[%clk 0:02:38.5]} 19. exd5 {[%clk 0:02:00.4]} 19... Bg5 {[%clk
0:02:38.6]} 20. Re4 {[%clk 0:01:41.1]} 20... Bxe3+ {[%clk 0:02:33.3]} 21. Rxe3
{[%clk 0:01:35.8]} 21... f5 {[%clk 0:02:27.2]} 22. c3 {[%clk 0:01:26.6]} 22...
Rae8 {[%clk 0:02:21.1]} 23. Qd4 {[%clk 0:01:23.2]} 23... Qe7 {[%clk 0:02:10.1]}
24. Re1 {[%clk 0:01:18.6]} 24... Qg5 {[%clk 0:02:07.5]} 25. h4 {[%clk
0:00:56.7]} 25... Qh6 {[%clk 0:01:54.2]} 26. Bf1 {[%clk 0:00:56.5]} 26... f4
{[%clk 0:01:51.2]} 27. Re4 {[%clk 0:00:56.3]} 27... f3 {[%clk 0:01:49.1]} 28.
Kh2 {[%clk 0:00:47.7]} 28... Ng4+ {[%clk 0:01:40.1]} 29. Kg3 {[%clk 0:00:39.1]}
29... Rxe4 {[%clk 0:01:22.1]} 30. Rxe4 {[%clk 0:00:37.9]} 30... Ne5 {[%clk
0:01:08.2]} 31. Rxe5 {[%clk 0:00:37.4]} 31... dxe5 {[%clk 0:01:05.8]} 32. Qxe5
{[%clk 0:00:38.3]} 32... f2 {[%clk 0:01:02.9]} 33. d6 {[%clk 0:00:38.2]} 33...
Qf6 {[%clk 0:00:56.2]} 34. Qd5+ {[%clk 0:00:34]} 34... Kh8 {[%clk 0:00:55.7]}
35. d7 {[%clk 0:00:34.3]} 35... Rd8 {[%clk 0:00:53.3]} 36. Qxb7 {[%clk
0:00:30.9]} 36... Qe5+ {[%clk 0:00:30.2]} 37. Kxf2 {[%clk 0:00:30.1]} 37... Rf8+
{[%clk 0:00:29.6]} 38. Kg1 {[%clk 0:00:29.1]} 38... Qe3+ {[%clk 0:00:26.5]} 39.
Kh2 {[%clk 0:00:29.3]} 39... Qf4+ {[%clk 0:00:26.6]} 40. g3 {[%clk 0:00:27.9]}
40... Qxf1 {[%clk 0:00:25.9]} 41. Qc8 {[%clk 0:00:19.8]} 41... Qf2+ {[%clk
0:00:25.2]} 42. Kh3 {[%clk 0:00:20.3]} 42... Qf5+ {[%clk 0:00:24.5]} 43. Kh2
{[%clk 0:00:20.4]} 43... Qf6 {[%clk 0:00:23.8]} 44. Qe8 {[%clk 0:00:18.6]} 44...
Qd8 {[%clk 0:00:22.5]} 45. Qe5 {[%clk 0:00:17.8]} 45... Qxd7 {[%clk 0:00:21.5]}
46. Qd5 {[%clk 0:00:17.8]} 46... Qxd5 {[%clk 0:00:20.9]} 0-1

[Event "*** SCC Grand Prix: Titled Tuesday Blitz"]
[Site "Chess.com"]
[Date "2020.06.23"]
[Round "9"]
[White "Baby_Legs"]
[Black "jaskol95"]
[Result "1-0"]
[WhiteElo "2599"]
[BlackElo "2388"]
[TimeControl "180+1"]
[EndTime "11:46:08 PDT"]
[Termination "Baby_Legs won by checkmate"]

1. Nf3 {[%clk 0:03:00.9]} 1... Nf6 {[%clk 0:02:59.1]} 2. e3 {[%clk 0:02:57.8]}
2... g6 {[%clk 0:02:54]} 3. d4 {[%clk 0:02:56]} 3... Bg7 {[%clk 0:02:51]} 4. c4
{[%clk 0:02:56.6]} 4... d5 {[%clk 0:02:51.3]} 5. cxd5 {[%clk 0:02:55.7]} 5...
Nxd5 {[%clk 0:02:52.2]} 6. Be2 {[%clk 0:02:55.8]} 6... O-O {[%clk 0:02:50.8]} 7.
O-O {[%clk 0:02:55.4]} 7... b6 {[%clk 0:02:51.3]} 8. e4 {[%clk 0:02:54.9]} 8...
Nf6 {[%clk 0:02:50.2]} 9. Nc3 {[%clk 0:02:55]} 9... Bb7 {[%clk 0:02:50.4]} 10.
Qc2 {[%clk 0:02:50.1]} 10... Nbd7 {[%clk 0:02:44.4]} 11. Rd1 {[%clk 0:02:49.1]}
11... a6 {[%clk 0:02:41.9]} 12. h3 {[%clk 0:02:46.1]} 12... Qc8 {[%clk
0:02:39.9]} 13. Bf4 {[%clk 0:02:43.6]} 13... c5 {[%clk 0:02:34.8]} 14. d5 {[%clk
0:02:43.4]} 14... Ne8 {[%clk 0:01:40]} 15. h4 {[%clk 0:02:32.1]} 15... e5 {[%clk
0:01:34.4]} 16. dxe6 {[%clk 0:02:26.8]} 16... fxe6 {[%clk 0:01:35.3]} 17. Bg3
{[%clk 0:02:24]} 17... Ndf6 {[%clk 0:01:28.2]} 18. Ne5 {[%clk 0:02:15.6]} 18...
b5 {[%clk 0:01:23.6]} 19. Bf3 {[%clk 0:01:31.5]} 19... Nh5 {[%clk 0:00:48.6]}
20. Bxh5 {[%clk 0:01:25]} 20... gxh5 {[%clk 0:00:49.5]} 21. Qe2 {[%clk
0:01:20.9]} 21... Nf6 {[%clk 0:00:45]} 22. f3 {[%clk 0:01:17.9]} 22... c4 {[%clk
0:00:36.7]} 23. Qe3 {[%clk 0:01:10.7]} 23... Rd8 {[%clk 0:00:20.7]} 24. Ne2
{[%clk 0:01:03.2]} 24... Rxd1+ {[%clk 0:00:20.3]} 25. Rxd1 {[%clk 0:01:04.1]}
25... Qe8 {[%clk 0:00:20.6]} 26. Nf4 {[%clk 0:01:01.8]} 26... Nxe4 {[%clk
0:00:11.9]} 27. Ne2 {[%clk 0:00:29.3]} 27... Nxg3 {[%clk 0:00:10.1]} 28. Nxg3
{[%clk 0:00:30.2]} 28... Rd8 {[%clk 0:00:07.7]} 29. Re1 {[%clk 0:00:28.5]} 29...
Rd5 {[%clk 0:00:06.2]} 30. f4 {[%clk 0:00:26.6]} 30... Qd8 {[%clk 0:00:05.4]}
31. Nxh5 {[%clk 0:00:25.7]} 31... Qxh4 {[%clk 0:00:04.4]} 32. Nxg7 {[%clk
0:00:23]} 32... Kxg7 {[%clk 0:00:04.9]} 33. Nf3 {[%clk 0:00:22.5]} 33... Qg3
{[%clk 0:00:04.3]} 34. Qxe6 {[%clk 0:00:21.6]} 34... Rd2 {[%clk 0:00:04.5]} 35.
Qe7+ {[%clk 0:00:18.9]} 35... Kg8 {[%clk 0:00:04.3]} 36. Qe8+ {[%clk 0:00:18.9]}
36... Kg7 {[%clk 0:00:04.8]} 37. Re7+ {[%clk 0:00:19.4]} 37... Kh6 {[%clk
0:00:05.4]} 38. Qf8+ {[%clk 0:00:17.2]} 38... Kh5 {[%clk 0:00:05.6]} 39. Rxh7+
{[%clk 0:00:16.8]} 39... Kg4 {[%clk 0:00:06.1]} 40. Rg7+ {[%clk 0:00:16.3]}
40... Kh5 {[%clk 0:00:06.8]} 41. Qh8# {[%clk 0:00:16.5]} 1-0

[Event "*** SCC Grand Prix: Titled Tuesday Blitz"]
[Site "Chess.com"]
[Date "2020.06.23"]
[Round "9"]
[White "Supernotar"]
[Black "enzovsky"]
[Result "1-0"]
[WhiteElo "2801"]
[BlackElo "2382"]
[TimeControl "180+1"]
[EndTime "11:46:10 PDT"]
[Termination "Supernotar won by resignation"]

1. d4 {[%clk 0:03:00.9]} 1... Nf6 {[%clk 0:02:59.9]} 2. c4 {[%clk 0:02:53.6]}
2... g6 {[%clk 0:03:00.1]} 3. Nc3 {[%clk 0:02:53.2]} 3... d5 {[%clk 0:03:00.4]}
4. cxd5 {[%clk 0:02:53.1]} 4... Nxd5 {[%clk 0:03:01.3]} 5. e4 {[%clk 0:02:53.4]}
5... Nxc3 {[%clk 0:03:00.9]} 6. bxc3 {[%clk 0:02:54.3]} 6... Bg7 {[%clk
0:03:01.7]} 7. Nf3 {[%clk 0:02:54.7]} 7... c5 {[%clk 0:03:02.6]} 8. Be3 {[%clk
0:02:54.3]} 8... Qa5 {[%clk 0:03:02.8]} 9. Qd2 {[%clk 0:02:54.4]} 9... Nc6
{[%clk 0:03:02.9]} 10. Rc1 {[%clk 0:02:53.9]} 10... cxd4 {[%clk 0:03:02.4]} 11.
cxd4 {[%clk 0:02:53.5]} 11... Qxd2+ {[%clk 0:03:03.3]} 12. Kxd2 {[%clk
0:02:53.7]} 12... O-O {[%clk 0:03:04.2]} 13. d5 {[%clk 0:02:53.8]} 13... Rd8
{[%clk 0:03:01.3]} 14. Ke1 {[%clk 0:02:53.9]} 14... Na5 {[%clk 0:02:57.2]} 15.
Bg5 {[%clk 0:02:51.9]} 15... Bd7 {[%clk 0:02:56.7]} 16. Bd3 {[%clk 0:02:49.8]}
16... f5 {[%clk 0:02:55.7]} 17. Rc7 {[%clk 0:02:42.2]} 17... fxe4 {[%clk
0:02:39.3]} 18. Bxe4 {[%clk 0:02:41]} 18... Bf6 {[%clk 0:02:38]} 19. d6 {[%clk
0:02:23.8]} 19... Bxg5 {[%clk 0:02:00.9]} 20. Nxg5 {[%clk 0:02:21.7]} 20... exd6
{[%clk 0:02:01.4]} 21. Bd5+ {[%clk 0:02:19]} 21... Kf8 {[%clk 0:01:56.2]} 22.
Kd2 {[%clk 0:02:15.1]} 22... h6 {[%clk 0:01:50.6]} 23. Nf7 {[%clk 0:02:02.7]}
23... Rac8 {[%clk 0:01:49.9]} 24. Rhc1 {[%clk 0:01:59.8]} 24... Rxc7 {[%clk
0:01:49.3]} 25. Rxc7 {[%clk 0:01:59.4]} 25... Ke7 {[%clk 0:01:49]} 26. Nxd8
{[%clk 0:01:56.3]} 26... Kxd8 {[%clk 0:01:49.9]} 27. Rc3 {[%clk 0:01:54.7]}
27... b5 {[%clk 0:01:46.6]} 28. Ra3 {[%clk 0:01:32.6]} 28... Bc6 {[%clk
0:01:35.7]} 29. Rxa5 {[%clk 0:01:30.5]} 29... Bxd5 {[%clk 0:01:35.6]} 30. Rxb5
{[%clk 0:01:20.7]} 30... Bxa2 {[%clk 0:01:35.3]} 31. Ra5 {[%clk 0:01:18.9]}
31... Be6 {[%clk 0:01:34.8]} 32. Rxa7 {[%clk 0:01:17.8]} 32... Bd7 {[%clk
0:01:34.9]} 33. Ke3 {[%clk 0:01:15.5]} 33... Ke7 {[%clk 0:01:34.8]} 34. Kd4
{[%clk 0:01:14]} 34... Ke6 {[%clk 0:01:35]} 35. g3 {[%clk 0:01:07.4]} 35... Bc6
{[%clk 0:01:30]} 36. Rh7 {[%clk 0:01:04.2]} 36... h5 {[%clk 0:01:26.7]} 37. h4
{[%clk 0:01:02.8]} 37... Be8 {[%clk 0:01:25.3]} 38. Ra7 {[%clk 0:00:58]} 38...
Bf7 {[%clk 0:01:25.4]} 39. Ke4 {[%clk 0:00:57.1]} 39... Be8 {[%clk 0:01:24.4]}
40. Kf4 {[%clk 0:00:56.8]} 40... Bb5 {[%clk 0:01:24]} 41. Ra3 {[%clk 0:00:49.7]}
41... Kf6 {[%clk 0:01:12.9]} 42. Rb3 {[%clk 0:00:40.5]} 42... Bc4 {[%clk
0:01:10.2]} 43. Rb6 {[%clk 0:00:37.3]} 43... Ke6 {[%clk 0:01:06.3]} 44. Kg5
{[%clk 0:00:37.1]} 44... Bd3 {[%clk 0:01:02.7]} 45. Rb3 {[%clk 0:00:35.4]} 45...
Bc2 {[%clk 0:01:00.8]} 46. Rc3 {[%clk 0:00:33.5]} 46... Bf5 {[%clk 0:00:59.1]}
47. f3 {[%clk 0:00:31]} 47... d5 {[%clk 0:00:57.6]} 48. g4 {[%clk 0:00:27.1]}
48... hxg4 {[%clk 0:00:58.5]} 49. fxg4 {[%clk 0:00:27.6]} 49... Be4 {[%clk
0:00:59]} 50. Kf4 {[%clk 0:00:24.2]} 50... Kf6 {[%clk 0:00:52.3]} 51. Rc6+
{[%clk 0:00:21.4]} 51... Kg7 {[%clk 0:00:50.5]} 52. Ke5 {[%clk 0:00:20.4]} 52...
Kh6 {[%clk 0:00:48.6]} 53. Rc8 {[%clk 0:00:18.2]} 53... Kg7 {[%clk 0:00:46.8]}
54. Rc7+ {[%clk 0:00:16.5]} 54... Kh6 {[%clk 0:00:47.3]} 55. g5+ {[%clk
0:00:16]} 55... Kh5 {[%clk 0:00:47.4]} 56. Kf4 {[%clk 0:00:13.4]} 1-0